bitfinex/quotes_BTCUSD_20220109
["timestamp","ask_amount","ask_price","bid_price","bid_amount"]
[1641687074282,0.68009,41447.0,41446.0,0.1681207]
[1641687074584,0.03009,41447.0,41446.0,0.1681207]
[1641687075024,0.02009,41447.0,41446.0,0.1681207]
[1641687075224,0.080432,41447.0,41446.0,0.1681207]
[1641687076025,0.0483,41450.0,41446.0,0.1681207]
[1641687076026,0.0483,41450.0,41446.0,0.61340267]
[1641687076225,0.00045062,41452.0,41446.0,0.61340267]
[1641687076824,0.00045062,41452.0,41446.0,0.61540267]
[1641687077029,0.00045064,41452.0,41449.0,0.32490851]
[1641687077426,0.00045064,41452.0,41449.0,0.37490851]
[1641687077725,0.00045064,41452.0,41449.0,0.32490851]
[1641687078127,0.0009013,41452.0,41449.0,0.32490851]
[1641687078328,0.00045066,41452.0,41449.0,0.32490851]
[1641687078988,0.00045066,41452.0,41449.0,0.32790851]
[1641687079186,0.06077166,41452.0,41449.0,0.32790851]
[1641687079587,0.06077166,41452.0,41449.0,0.003]
[1641687079988,0.05977166,41452.0,41449.0,0.003]
[1641687080191,0.05977166,41452.0,41446.0,0.67372267]
[1641687080592,0.05977166,41452.0,41449.0,0.28094832]
[1641687081392,0.00045066,41452.0,41449.0,0.28094832]
[1641687082229,0.00045066,41452.0,41449.0,0.34126402]
[1641687082829,0.00045066,41452.0,41449.0,0.34426402]
[1641687083030,0.00045066,41452.0,41449.0,0.40458002]
[1641687083632,0.00090132,41452.0,41449.0,0.34426402]
[1641687083832,0.00045066,41452.0,41449.0,0.34426402]
[1641687084233,0.00045066,41452.0,41449.0,0.34126402]
[1641687084835,0.00045066,41452.0,41450.0,0.060315]
[1641687085035,0.00045066,41452.0,41449.0,0.34426402]
[1641687085852,0.00045066,41452.0,41449.0,0.28394832]
[1641687086080,0.00045066,41452.0,41451.0,0.31037304]
[1641687086579,0.00045066,41452.0,41451.0,0.36037304]
[1641687087078,0.03236526,41459.0,41458.0,0.43430321]
[1641687087278,0.05249126,41459.0,41455.0,0.06030759]
[1641687087477,0.03236526,41459.0,41455.0,0.06030759]
[1641687088077,0.00045067,41458.0,41456.0,0.24605739]
[1641687088278,0.00045067,41458.0,41455.0,0.060307]
[1641687088479,0.00045067,41458.0,41454.0,0.0603094]
[1641687088880,0.00045067,41458.0,41455.0,0.004]
[1641687089280,0.00045067,41457.0,41455.0,0.004]
[1641687089480,0.00045067,41457.0,41455.0,0.00529477]
[1641687089932,0.00045067,41457.0,41455.0,0.12589972]
[1641687090235,0.00045067,41457.0,41455.0,0.12189972]
[1641687090436,0.01681593,41459.0,41455.0,0.17189972]
[1641687090833,0.01681593,41459.0,41458.0,0.65217858]
[1641687091033,0.01681593,41459.0,41458.0,0.40217858]
[1641687092138,0.01681593,41459.0,41457.0,0.060299]
[1641687092335,0.01681593,41459.0,41447.0,0.25615902]
[1641687092534,0.01681593,41459.0,41447.0,0.00121968]
[1641687092935,0.07712793,41459.0,41452.0,0.06031268]
[1641687093137,0.020126,41458.0,41456.0,0.4503172]
[1641687093476,0.35683773,41457.0,41456.0,0.4503172]
[1641687094177,0.35683773,41457.0,41452.0,0.0003571]
[1641687094577,0.47747473,41457.0,41452.0,0.0003571]
[1641687094779,0.47747473,41457.0,41452.0,0.0003426]
[1641687094979,0.47747473,41457.0,41452.0,0.0023426]
[1641687095577,0.120637,41457.0,41452.0,0.0023426]
[1641687095978,0.01681593,41459.0,41452.0,0.0023426]
[1641687096677,0.31824692,41458.0,41452.0,0.00268521]
[1641687096879,0.31324692,41458.0,41452.0,0.00268521]
[1641687097329,0.31324692,41458.0,41452.0,0.00234261]
[1641687097732,0.060316,41455.0,41452.0,0.00234261]
[1641687097932,0.060316,41455.0,41452.0,0.0023509]
[1641687098134,0.060316,41455.0,41452.0,0.0003509]
[1641687098330,0.020126,41454.0,41452.0,0.0003509]
[1641687098632,0.25659976,41457.0,41452.0,0.0003509]
[1641687098833,0.55,41452.0,41450.0,0.00040182]
[1641687099031,0.33085259,41449.0,41438.0,0.05790265]
[1641687099230,0.770126,41447.0,41446.0,0.0682207]
[1641687099433,0.9,41446.0,41438.0,0.05790265]
[1641687099733,0.75,41441.0,41417.0,0.121407]
[1641687099932,0.38372534,41440.0,41425.0,0.1]
[1641687100133,0.060358,41438.0,41431.0,0.1]
[1641687100435,0.060358,41438.0,41417.0,0.000696]
[1641687100436,0.42657882,41428.0,41420.0,0.29118885]
[1641687100634,0.42657882,41428.0,41418.0,0.1]
[1641687100635,0.31762344,41425.0,41418.0,0.1]
[1641687100833,0.020126,41424.0,41418.0,0.1]
[1641687101093,0.0483,41423.0,41420.0,0.003]
[1641687101291,0.020126,41421.0,41420.0,0.003]
[1641687102295,0.65,41420.0,41417.0,0.000696]
[1641687102593,0.020126,41416.0,41412.0,0.00043]
[1641687102794,0.003764,41413.0,41409.0,0.0001]
[1641687102996,0.21912156,41412.0,41409.0,0.0001]
[1641687103295,0.21912156,41412.0,41410.0,0.00105945]
[1641687103494,0.31824058,41411.0,41407.0,0.04712161]
[1641687103693,0.31824058,41411.0,41407.0,0.03980147]
[1641687103694,0.0483,41410.0,41407.0,0.03980147]
[1641687103895,0.0483,41410.0,41409.0,0.546236]
[1641687104295,0.0483,41410.0,41404.0,0.00043]
[1641687104829,0.1099348,41410.0,41405.0,0.23845748]
[1641687105033,0.0693,41410.0,41405.0,0.23845748]
[1641687105229,0.0693,41410.0,41406.0,0.34815554]
[1641687105430,0.021,41410.0,41404.0,0.00043]
[1641687106232,0.0604,41411.0,41403.0,4.71636969]
[1641687106532,0.060381,41414.0,41409.0,0.23673312]
[1641687106731,0.00046274,41415.0,41412.0,0.31638866]
[1641687107633,0.00046281,41415.0,41409.0,0.56836195]
[1641687108135,0.00046281,41415.0,41410.0,0.64422656]
[1641687108335,0.00046281,41415.0,41410.0,0.73557656]
[1641687108788,0.00092561,41415.0,41410.0,0.479941]
[1641687108989,0.0004628,41415.0,41412.0,0.33381152]
[1641687109687,0.0004628,41415.0,41413.0,0.388591]
[1641687109886,0.00046281,41415.0,41413.0,0.388591]
[1641687110088,0.00046281,41415.0,41412.0,0.33381152]
[1641687110489,0.26642157,41421.0,41413.0,0.65]
[1641687110690,0.120748,41423.0,41416.0,0.79013249]
[1641687111186,0.00120048,41425.0,41416.0,0.79013249]
[1641687111586,0.00577521,41424.0,41417.0,0.23820276]
[1641687111788,0.32889842,41424.0,41417.0,0.24128906]
[1641687112092,0.32889842,41424.0,41416.0,0.79013249]
[1641687112329,0.06037,41423.0,41416.0,0.79013249]
[1641687112928,0.07537,41423.0,41416.0,0.45625564]
[1641687113129,0.020126,41422.0,41416.0,0.45625564]
[1641687113329,0.020126,41422.0,41413.0,0.27158447]
[1641687113631,0.07537,41423.0,41412.0,0.33381152]
[1641687113829,0.07537,41423.0,41415.0,0.2956952]
[1641687114030,0.020126,41422.0,41415.0,0.2956952]
[1641687115033,0.028126,41422.0,41415.0,0.2966952]
[1641687115533,0.060375,41418.0,41415.0,0.2966952]
[1641687115993,0.00046165,41420.0,41416.0,0.24295763]
[1641687116201,0.00046165,41420.0,41417.0,0.388591]
[1641687116394,0.00046163,41420.0,41417.0,0.44895159]
[1641687116995,0.01246163,41420.0,41418.0,0.2855699]
[1641687117194,0.01246163,41420.0,41419.0,1.71289915]
[1641687117494,0.01246165,41420.0,41419.0,0.80242531]
[1641687117693,0.01246165,41420.0,41419.0,1.05242531]
[1641687118094,0.01246165,41420.0,41419.0,1.21616531]
[1641687118294,0.00127352,41437.0,41420.0,0.90124505]
[1641687118495,0.000696,41440.0,41427.0,0.060345]
[1641687118694,0.000696,41440.0,41428.0,0.388591]
[1641687118897,0.3117788,41440.0,41431.0,1.60170941]
[1641687119094,0.3117788,41440.0,41431.0,1.99030041]
[1641687119295,0.000696,41440.0,41432.0,0.9]
[1641687119495,0.000696,41440.0,41437.0,0.06032786]
[1641687119744,0.000696,41440.0,41438.0,0.388591]
[1641687119936,0.000696,41440.0,41439.0,1.18323234]
[1641687120237,0.000696,41440.0,41439.0,2.36569074]
[1641687120436,0.000696,41440.0,41439.0,1.41569074]
[1641687121037,0.00114742,41440.0,41439.0,1.42469074]
[1641687122339,0.00114742,41440.0,41439.0,1.41569074]
[1641687122940,0.00114742,41440.0,41439.0,1.47469074]
[1641687123143,0.00114649,41440.0,41439.0,1.52469074]
[1641687123579,0.00114649,41440.0,41439.0,2.32469074]
[1641687123781,4.649e-05,41440.0,41439.0,1.397591]
[1641687123985,0.03536118,41456.0,41449.0,0.06030259]
[1641687124182,0.03536118,41456.0,41452.0,0.00124845]
[1641687124380,0.020126,41455.0,41452.0,0.00124845]
[1641687124583,0.03536118,41456.0,41452.0,0.09402845]
[1641687124784,0.03536118,41456.0,41455.0,1.24885364]
[1641687125083,0.03536118,41456.0,41455.0,1.29885364]
[1641687125280,0.03536118,41456.0,41455.0,1.34885364]
[1641687125481,0.03536118,41456.0,41455.0,1.35005478]
[1641687125781,6.118e-05,41456.0,41455.0,1.73864578]
[1641687125980,6.118e-05,41456.0,41455.0,1.83864578]
[1641687126881,6.118e-05,41456.0,41455.0,1.45005478]
[1641687127083,6.118e-05,41456.0,41455.0,0.70905478]
[1641687127342,6.118e-05,41456.0,41455.0,0.009]
[1641687127740,0.02018718,41456.0,41455.0,0.009]
[1641687128339,0.35357275,41456.0,41452.0,0.30032494]
[1641687128543,0.02064656,41456.0,41452.0,0.30032494]
[1641687128740,0.00052056,41456.0,41452.0,0.30032494]
[1641687128941,0.00052056,41456.0,41453.0,0.06030753]
[1641687129343,0.00052056,41456.0,41452.0,0.01]
[1641687129546,0.020126,41455.0,41452.0,0.01]
[1641687129744,0.470126,41453.0,41452.0,0.01]
[1641687129944,0.514626,41453.0,41452.0,0.01]
[1641687130343,0.30990152,41450.0,41446.0,0.26172495]
[1641687130745,0.060326,41453.0,41446.0,0.26172495]
[1641687130993,0.00045938,41453.0,41446.0,0.36972495]
[1641687131191,0.30173664,41467.0,41448.0,0.06031467]
[1641687131393,0.03609333,41465.0,41449.0,0.0012443]
[1641687131592,0.28578264,41464.0,41449.0,0.0012443]
[1641687131992,0.45713693,41452.0,41446.0,0.26972495]
[1641687132390,0.020126,41451.0,41446.0,0.26172495]
[1641687132590,0.45713693,41452.0,41446.0,0.26172495]
[1641687132792,0.020126,41451.0,41446.0,0.26172495]
[1641687132991,0.45713693,41452.0,41446.0,0.27472495]
[1641687133191,0.34287491,41447.0,41446.0,0.013]
[1641687133395,0.36300091,41447.0,41446.0,0.013]
[1641687133992,0.020126,41447.0,41446.0,0.01335769]
[1641687134194,0.020126,41447.0,41446.0,0.00035769]
[1641687134840,0.67751368,41457.0,41446.0,0.00035769]
[1641687134841,0.06032,41456.0,41446.0,0.00035769]
[1641687135037,0.3349,41457.0,41450.0,0.26039195]
[1641687135038,0.020126,41455.0,41450.0,0.26039195]
[1641687135234,0.00045812,41458.0,41450.0,0.26039195]
[1641687135235,0.00045812,41458.0,41450.0,0.49692351]
[1641687136235,0.35743319,41458.0,41452.0,0.04530917]
[1641687136435,0.35789139,41458.0,41452.0,0.04530917]
[1641687136835,0.35743327,41458.0,41452.0,0.04530917]
[1641687137037,0.35743327,41458.0,41452.0,0.05130917]
[1641687137235,0.0004582,41458.0,41452.0,0.05130917]
[1641687137435,0.0004582,41458.0,41454.0,0.06030693]
[1641687137638,0.0004582,41458.0,41455.0,0.0012178]
[1641687138682,0.13580908,41463.0,41455.0,0.0012178]
[1641687139082,0.00044689,41458.0,41455.0,0.0072178]
[1641687139685,0.00044691,41458.0,41455.0,0.0072178]
[1641687139884,0.39212756,41458.0,41455.0,0.0072178]
[1641687140185,0.39212756,41458.0,41450.0,0.49692351]
[1641687140383,0.39212756,41458.0,41450.0,0.26039195]
[1641687140883,0.39168065,41458.0,41450.0,0.26039195]
[1641687141083,0.39168065,41458.0,41450.0,0.27139195]
[1641687141484,0.39168065,41458.0,41450.0,0.51474898]
[1641687141683,0.33082626,41456.0,41450.0,0.011]
[1641687141888,0.2658995,41455.0,41450.0,0.011]
[1641687142088,0.77133529,41451.0,41450.0,0.011]
[1641687142348,0.81583529,41451.0,41434.0,0.22153381]
[1641687142550,0.81583529,41451.0,41433.0,0.20155722]
[1641687142743,0.81583529,41451.0,41444.0,0.24230252]
[1641687143043,0.060332,41448.0,41444.0,0.24230252]
[1641687143644,0.35872812,41456.0,41444.0,0.24230252]
[1641687143844,0.34291254,41452.0,41445.0,0.32398015]
[1641687144044,0.020126,41451.0,41445.0,0.32398015]
[1641687144446,0.020126,41451.0,41446.0,0.32268097]
[1641687144643,0.0445,41456.0,41448.0,0.00120785]
[1641687144847,0.00044699,41463.0,41448.0,0.00120785]
[1641687145044,0.000894,41463.0,41448.0,0.00120785]
[1641687145243,0.00044701,41463.0,41453.0,0.06030721]
[1641687145444,0.00044701,41463.0,41450.0,0.1206121]
[1641687145445,0.27723676,41462.0,41456.0,0.26229673]
[1641687145646,0.00044701,41463.0,41459.0,0.33717137]
[1641687145845,0.00044701,41463.0,41459.0,0.07248]
[1641687146085,0.00016384,41463.0,41460.0,0.51029386]
[1641687146286,0.00044712,41463.0,41457.0,0.12182]
[1641687146486,0.00044712,41463.0,41461.0,0.35085771]
[1641687146685,0.00044712,41463.0,41459.0,0.060297]
[1641687147190,0.016,41469.0,41462.0,0.9012545]
[1641687147389,0.004,41479.0,41462.0,0.9012545]
[1641687147390,0.004,41479.0,41477.0,0.03660998]
[1641687147588,0.004,41479.0,41478.0,0.9]
[1641687147789,0.0001,41479.0,41478.0,1.28980368]
[1641687147988,0.0001,41479.0,41478.0,2.35970526]
[1641687148187,0.0001,41479.0,41478.0,2.40970526]
[1641687148388,0.0001,41479.0,41478.0,2.40113657]
[1641687149187,0.0001,41479.0,41478.0,2.40913657]
[1641687149388,0.00055526,41479.0,41478.0,2.40913657]
[1641687150040,0.00055526,41479.0,41478.0,0.7824122]
[1641687150241,0.00055526,41479.0,41478.0,0.00126125]
[1641687150440,0.00101052,41479.0,41478.0,0.00126125]
[1641687150643,0.00055526,41479.0,41477.0,0.03660998]
[1641687151042,1.3875086,41478.0,41477.0,0.03660998]
[1641687151241,0.7076346,41478.0,41477.0,0.03660998]
[1641687151440,0.7076346,41478.0,41477.0,0.02660998]
[1641687151641,0.40454338,41478.0,41477.0,0.02660998]
[1641687152843,0.70794519,41478.0,41477.0,0.02660998]
[1641687153043,1.12244067,41478.0,41477.0,0.02660998]
[1641687153241,1.15044067,41478.0,41477.0,0.02660998]
[1641687153690,0.46307674,41478.0,41477.0,9.98e-06]
[1641687153891,0.46306663,41478.0,41477.0,9.98e-06]
[1641687154090,0.52335463,41478.0,41477.0,9.98e-06]
[1641687154291,0.49535463,41478.0,41477.0,9.98e-06]
[1641687155093,0.50135463,41478.0,41477.0,9.98e-06]
[1641687156293,0.49535463,41478.0,41477.0,9.98e-06]
[1641687156594,0.73637467,41473.0,41465.0,0.25749839]
[1641687156796,0.79666767,41473.0,41464.0,0.06029236]
[1641687157095,0.39708415,41473.0,41466.0,0.06029006]
[1641687157338,0.005,41473.0,41469.0,0.00124904]
[1641687157842,0.005,41473.0,41472.0,0.53699525]
[1641687158238,0.005,41473.0,41472.0,0.99317769]
[1641687158438,0.3559674,41479.0,41472.0,1.04317769]
[1641687158839,0.3559674,41479.0,41472.0,0.74317769]
[1641687159041,0.3559674,41479.0,41471.0,0.1205544]
[1641687159240,0.3559674,41479.0,41469.0,0.06153389]
[1641687159241,0.020126,41478.0,41469.0,0.06153389]
[1641687159440,0.00044537,41476.0,41469.0,0.06028485]
[1641687160041,0.39924078,41475.0,41469.0,0.06028485]
[1641687160241,0.35563547,41479.0,41469.0,0.06028485]
[1641687160643,0.00044537,41473.0,41469.0,0.06028485]
[1641687161086,0.00044537,41473.0,41469.0,0.06928485]
[1641687161686,0.35563547,41479.0,41469.0,0.06928485]
[1641687162287,0.35563547,41479.0,41469.0,0.009]
[1641687162288,0.70931888,41479.0,41469.0,0.009]
[1641687162486,0.70931888,41479.0,41465.0,0.12181537]
[1641687162487,0.1,41477.0,41465.0,0.12181537]
[1641687162693,0.19674792,41481.0,41465.0,0.12181537]
[1641687162694,0.59224646,41500.0,41496.0,0.58080876]
[1641687162903,0.9938,41508.0,41496.0,0.58080876]
[1641687162904,0.13184318,41523.0,41517.0,0.71093797]
[1641687163101,0.438,41527.0,41526.0,0.01547273]
[1641687163290,0.01,41532.0,41529.0,0.07806318]
[1641687163490,0.42059171,41537.0,41530.0,0.6388484]
[1641687163689,0.42059171,41537.0,41536.0,0.8058]
[1641687163994,2.05422183,41540.0,41538.0,1.54970488]
[1641687164186,2.05422183,41540.0,41537.0,0.4602582]
[1641687164387,2.05422183,41540.0,41539.0,0.2504754]
[1641687164591,1.47285132,41540.0,41539.0,1.2440338]
[1641687164845,2.79028357,41550.0,41540.0,1.10128903]
[1641687165044,2.66958357,41550.0,41540.0,1.10128903]
[1641687165246,2.03294434,41550.0,41540.0,1.10128903]
[1641687165442,1.62446999,41550.0,41540.0,1.10128903]
[1641687165649,0.000696,41565.0,41549.0,0.1]
[1641687165842,0.000696,41565.0,41550.0,0.68084467]
[1641687166045,0.20046,41591.0,41564.0,0.00126479]
[1641687166248,0.004,41589.0,41578.0,0.00125655]
[1641687166446,0.004,41589.0,41579.0,0.104617]
[1641687166645,0.004,41589.0,41581.0,0.38900136]
[1641687166846,4.16747649,41599.0,41588.0,0.00122111]
[1641687166847,4.16263249,41599.0,41588.0,0.00122111]
[1641687167044,4.16263249,41599.0,41597.0,0.00125895]
[1641687167045,4.15263249,41599.0,41597.0,0.00125895]
[1641687167246,0.38737,41598.0,41597.0,0.07673]
[1641687167445,0.48737,41598.0,41596.0,0.01723]
[1641687167644,0.38737,41597.0,41596.0,0.01723]
[1641687168247,0.38737,41597.0,41592.0,0.06010792]
[1641687168491,0.38737,41596.0,41594.0,3.54832782]
[1641687168692,1.0,41600.0,41595.0,0.38865406]
[1641687168891,1.0,41600.0,41596.0,0.38737]
[1641687169096,1.0,41600.0,41597.0,0.38737]
[1641687169295,1.0,41600.0,41599.0,0.02151863]
[1641687169494,1.0,41600.0,41599.0,0.40888863]
[1641687169693,1.0,41600.0,41599.0,0.80953099]
[1641687169895,0.995,41600.0,41599.0,0.85953099]
[1641687170095,0.995,41600.0,41599.0,1.10900639]
[1641687170294,0.995,41600.0,41599.0,1.23862785]
[1641687170496,0.0043507,41615.0,41614.0,0.00121388]
[1641687170699,0.0165892,41641.0,41614.0,0.00121388]
[1641687170700,0.00509422,41630.0,41614.0,0.53016218]
[1641687170899,0.0165892,41641.0,41630.0,0.34968656]
[1641687170900,0.27944918,41634.0,41630.0,0.34968656]
[1641687171100,0.0165892,41641.0,41631.0,0.27799768]
[1641687171298,0.0165892,41641.0,41631.0,0.32249768]
[1641687171502,0.0162852,41641.0,41632.0,0.2504754]
[1641687171700,0.0162852,41641.0,41638.0,0.1]
[1641687171903,0.0111852,41641.0,41640.0,0.387065]
[1641687172099,0.0061852,41641.0,41640.0,0.546675]
[1641687172351,0.31312641,41642.0,41640.0,0.15961]
[1641687172552,0.387065,41641.0,41640.0,0.16511]
[1641687172752,0.0987713,41640.0,41639.0,0.03004]
[1641687172952,0.35,41639.0,41627.0,0.01218228]
[1641687173151,0.1,41638.0,41627.0,0.01218228]
[1641687173353,0.1,41629.0,41626.0,0.0445]
[1641687173554,0.55848171,41628.0,41617.0,0.000696]
[1641687173751,0.1,41623.0,41617.0,0.000696]
[1641687173951,0.387065,41622.0,41617.0,0.000696]
[1641687174351,0.1,41620.0,41617.0,0.000696]
[1641687174551,0.113455,41619.0,41617.0,0.000696]
[1641687174752,0.33213388,41618.0,41617.0,0.000696]
[1641687174952,0.33213388,41618.0,41614.0,0.018646]
[1641687174953,1.013455,41617.0,41614.0,0.018646]
[1641687175354,0.1,41616.0,41614.0,0.018646]
[1641687175556,0.387065,41615.0,41614.0,0.018646]
[1641687175755,0.72574787,41615.0,41600.0,0.1982673]
[1641687176018,1.0,41601.0,41600.0,0.1982673]
[1641687176215,1.0,41601.0,41592.0,0.000696]
[1641687176216,0.1982673,41600.0,41592.0,0.000696]
[1641687176414,1.0,41594.0,41592.0,0.000696]
[1641687176616,1.76337829,41594.0,41592.0,0.000696]
[1641687176817,0.1982673,41600.0,41592.0,0.000696]
[1641687177016,0.1982673,41600.0,41594.0,0.387065]
[1641687177218,0.1982673,41600.0,41593.0,0.59466236]
[1641687177616,0.1932673,41600.0,41593.0,0.59466236]
[1641687177924,1.19086635,41594.0,41593.0,0.59466236]
[1641687178118,0.387065,41594.0,41593.0,0.59466236]
[1641687178316,0.1,41596.0,41593.0,0.59466236]
[1641687178519,0.1,41596.0,41593.0,0.58666236]
[1641687179116,0.69266347,41595.0,41593.0,0.58666236]
[1641687179319,0.69266347,41595.0,41593.0,0.60066236]
[1641687179519,0.69266347,41595.0,41593.0,2.36e-06]
[1641687179754,0.387065,41594.0,41592.0,8.36e-06]
[1641687179954,0.387065,41592.0,41581.0,0.004]
[1641687180154,0.9,41583.0,41581.0,0.004]
[1641687180356,0.113455,41583.0,41581.0,0.004]
[1641687180553,0.111835,41583.0,41581.0,0.004]
[1641687180757,0.00122601,41593.0,41581.0,0.004]
[1641687180960,0.00044306,41605.0,41581.0,0.06411507]
[1641687181155,0.00044306,41605.0,41582.0,0.018]
[1641687181156,0.004,41583.0,41582.0,0.018]
[1641687181365,0.29775982,41599.0,41583.0,0.7]
[1641687181560,0.00044306,41605.0,41586.0,0.1]
[1641687181561,0.19455068,41600.0,41586.0,0.1]
[1641687181760,0.5750038,41594.0,41584.0,0.05]
[1641687181955,0.387424,41593.0,41585.0,0.05]
[1641687182354,0.387424,41593.0,41583.0,0.16011265]
[1641687182657,0.00120841,41596.0,41583.0,0.35011265]
[1641687182953,0.00120841,41596.0,41587.0,0.1]
[1641687183155,0.33260244,41605.0,41587.0,0.1]
[1641687183156,0.33383636,41605.0,41588.0,0.387424]
[1641687183354,0.25918501,41602.0,41594.0,0.42761415]
[1641687183617,0.33383636,41605.0,41594.0,0.52761415]
[1641687183816,0.33427937,41605.0,41595.0,0.387424]
[1641687184025,0.33427937,41605.0,41599.0,0.387424]
[1641687184026,0.00044301,41605.0,41599.0,0.387424]
[1641687184221,0.00044301,41605.0,41599.0,1.087424]
[1641687184416,0.00044301,41605.0,41599.0,0.481924]
[1641687184617,0.00044301,41605.0,41604.0,0.1]
[1641687184818,0.000696,41615.0,41605.0,0.387424]
[1641687185016,0.000696,41615.0,41604.0,0.15]
[1641687185017,0.27210764,41613.0,41606.0,0.387424]
[1641687185218,0.27210764,41613.0,41604.0,0.207]
[1641687185416,0.012,41615.0,41604.0,0.207]
[1641687185617,0.012,41615.0,41605.0,0.012015]
[1641687185819,0.012,41615.0,41612.0,0.35714387]
[1641687186118,0.012,41615.0,41613.0,0.387424]
[1641687186623,0.24010894,41614.0,41613.0,0.387424]
[1641687186817,0.012,41615.0,41612.0,0.1]
[1641687187016,0.012,41615.0,41612.0,0.05]
[1641687187242,0.012,41615.0,41613.0,0.069]
[1641687187635,0.012,41615.0,41613.0,0.019]
[1641687188240,0.25762525,41618.0,41613.0,0.019]
[1641687188440,0.25762525,41618.0,41611.0,0.1]
[1641687188640,0.25762525,41618.0,41593.0,0.220153]
[1641687188641,0.00124836,41616.0,41608.0,0.1]
[1641687188839,0.00124836,41616.0,41608.0,0.05]
[1641687189039,0.25762525,41618.0,41608.0,0.05]
[1641687189040,0.25762525,41618.0,41612.0,0.1]
[1641687189439,0.00045193,41615.0,41612.0,0.2]
[1641687189640,0.00045193,41615.0,41613.0,0.29023351]
[1641687189842,0.1,41638.0,41615.0,0.65]
[1641687190040,0.00126162,41631.0,41619.0,0.1]
[1641687190245,0.00126162,41631.0,41616.0,0.29826594]
[1641687190539,0.39074266,41633.0,41612.0,0.2]
[1641687190540,0.00045193,41615.0,41612.0,0.49826594]
[1641687190739,0.00045193,41615.0,41614.0,0.30884563]
[1641687190990,0.00045193,41615.0,41614.0,0.487424]
[1641687191189,0.00145193,41615.0,41614.0,0.487424]
[1641687191590,0.001,41615.0,41614.0,0.487424]
[1641687192393,0.001,41615.0,41614.0,0.83961383]
[1641687192593,0.24201214,41621.0,41614.0,0.83961383]
[1641687192790,0.24201214,41621.0,41615.0,0.387424]
[1641687192990,0.24201214,41621.0,41619.0,0.1]
[1641687193198,0.24501214,41621.0,41614.0,0.46818983]
[1641687193393,0.24501214,41621.0,41615.0,0.387424]
[1641687193791,0.24546294,41621.0,41615.0,0.387424]
[1641687194191,0.0034508,41621.0,41618.0,0.43894244]
[1641687194392,0.0034508,41621.0,41619.0,0.05]
[1641687194591,0.0004508,41621.0,41614.0,0.45218983]
[1641687194849,0.00171297,41620.0,41609.0,0.00038353]
[1641687195249,0.00171297,41620.0,41614.0,0.02]
[1641687195250,0.387424,41619.0,41614.0,0.02]
[1641687195450,0.111421,41619.0,41615.0,0.41601467]
[1641687195649,0.00171297,41620.0,41615.0,0.41601467]
[1641687196052,0.004,41621.0,41616.0,0.387424]
[1641687196249,0.004,41621.0,41615.0,0.51601467]
[1641687196449,0.31044044,41624.0,41615.0,0.51601467]
[1641687197053,0.32473356,41617.0,41615.0,0.51601467]
[1641687197251,0.002,41624.0,41615.0,0.53401467]
[1641687198150,0.002,41624.0,41616.0,0.0004125]
[1641687198588,0.2411898,41625.0,41616.0,0.0004125]
[1641687199190,0.26754723,41618.0,41616.0,0.0134125]
[1641687199991,0.26754723,41618.0,41616.0,0.01379015]
[1641687200390,0.26754723,41618.0,41616.0,0.00079015]
[1641687200591,0.00128749,41625.0,41616.0,0.00079015]
[1641687200793,0.26135817,41626.0,41616.0,0.00037765]
[1641687200989,0.26135817,41626.0,41616.0,0.00075533]
[1641687201192,0.002,41625.0,41616.0,0.25137768]
[1641687201591,0.28370873,41619.0,41616.0,0.25137768]
[1641687202254,0.28370873,41619.0,41616.0,7.765e-05]
[1641687202451,0.38370873,41619.0,41616.0,7.765e-05]
[1641687202655,0.27075645,41618.0,41616.0,7.765e-05]
[1641687202851,0.39466167,41618.0,41616.0,7.765e-05]
[1641687203049,0.81555016,41617.0,41616.0,7.765e-05]
[1641687203250,0.80297416,41617.0,41614.0,0.67202627]
[1641687203452,0.111421,41616.0,41614.0,0.67202627]
[1641687203751,0.41055016,41617.0,41614.0,0.67202627]
[1641687205252,0.41755016,41617.0,41614.0,0.67202627]
[1641687206495,0.40055016,41617.0,41614.0,0.67202627]
[1641687206692,0.00045037,41621.0,41619.0,0.19413261]
[1641687206896,0.00045037,41621.0,41620.0,1.38647312]
[1641687207096,0.00655045,41644.0,41621.0,0.9]
[1641687207296,0.00655045,41644.0,41624.0,0.00125402]
[1641687207297,0.00125355,41641.0,41624.0,0.00125402]
[1641687207694,0.27448419,41631.0,41627.0,0.44315541]
[1641687208592,0.32031624,41636.0,41627.0,0.44315541]
[1641687208993,0.31531624,41636.0,41628.0,0.06006045]
[1641687209195,0.1,41635.0,41628.0,0.06006045]
[1641687209392,0.1,41635.0,41627.0,0.44615541]
[1641687209594,0.24804803,41634.0,41627.0,0.44615541]
[1641687209837,0.0004493,41633.0,41627.0,0.44615541]
[1641687210036,0.0004493,41633.0,41627.0,0.003]
[1641687210238,0.387424,41632.0,41627.0,0.003]
[1641687211037,0.35735792,41629.0,41626.0,0.40100899]
[1641687211236,0.35735792,41629.0,41627.0,0.013]
[1641687211434,0.387424,41628.0,41627.0,0.013]
[1641687211836,0.387424,41628.0,41627.0,0.253]
[1641687212036,0.0004493,41629.0,41627.0,0.253]
[1641687212439,0.0004493,41629.0,41627.0,0.24]
[1641687213237,0.0004493,41629.0,41627.0,0.246]
[1641687213238,0.0054493,41629.0,41627.0,0.246]
[1641687214295,0.00588858,41629.0,41627.0,0.246]
[1641687214495,0.00043928,41629.0,41627.0,0.24]
[1641687214894,0.887424,41628.0,41627.0,0.24]
[1641687215495,0.387424,41628.0,41627.0,0.24]
[1641687215896,0.00843928,41629.0,41627.0,0.24]
[1641687216099,0.00843928,41629.0,41627.0,0.0987713]
[1641687216100,1.287424,41628.0,41627.0,0.0987713]
[1641687216496,1.28786328,41628.0,41627.0,0.0987713]
[1641687217345,1.28786328,41628.0,41616.0,0.00037108]
[1641687217346,0.28370873,41619.0,41616.0,0.00037108]
[1641687217543,1.0,41617.0,41616.0,0.00037108]
[1641687217747,1.387424,41617.0,41616.0,0.00037108]
[1641687217942,1.362424,41617.0,41616.0,0.00037108]
[1641687218142,0.9,41615.0,41614.0,0.39659735]
[1641687218343,1.61482896,41615.0,41614.0,0.39659735]
[1641687218541,2.05677689,41615.0,41614.0,0.39659735]
[1641687219045,0.28370873,41619.0,41614.0,0.39659735]
[1641687219244,0.007,41615.0,41614.0,0.39659735]
[1641687219442,0.007,41615.0,41614.0,0.78402135]
[1641687220044,0.007,41615.0,41614.0,0.83402135]
[1641687220249,0.007,41615.0,41614.0,0.49659735]
[1641687220444,0.387424,41615.0,41614.0,0.49659735]